bitfinex-derivatives/quotes_ETHF0:USTF0_20210107
["timestamp","ask_amount","ask_price","bid_price","bid_amount"]
[1610032311770,34.00959,1214.9,1214.5,49.7255]
[1610032313174,34.00959,1214.9,1214.5,2.12]
[1610032313371,34.00959,1214.9,1214.0,48.4598]
[1610032313571,30.0,1214.9,1214.4,4.00959]
[1610032313770,30.0,1214.8,1214.4,6.07379]
[1610032314671,30.0,1214.7,1214.4,6.07379]
[1610032315572,30.0,1214.7,1214.6,4.00959]
[1610032315773,30.0,1215.7,1215.0,64.4792]
[1610032317474,4.00959,1215.2,1215.1,4.00959]
[1610032317676,4.00959,1215.2,1214.4,2.0642]
[1610032317677,34.00959,1215.2,1214.4,2.0642]
[1610032317874,34.00959,1215.2,1214.5,65.8259]
[1610032319578,30.0,1214.8,1214.6,4.00959]
[1610032320678,4.00959,1214.9,1214.6,4.00959]
[1610032320878,34.00959,1214.9,1214.6,4.00959]
[1610032321579,34.00959,1214.9,1214.8,4.00959]
[1610032323479,34.00959,1214.9,1214.4,6.07379]
[1610032325586,34.00959,1214.5,1214.4,6.07379]
[1610032326586,30.0,1215.3,1214.4,6.07379]
[1610032327485,34.00959,1214.7,1214.6,4.00959]
[1610032327987,34.00959,1214.7,1214.4,2.0642]
[1610032328386,34.00959,1214.7,1213.7,65.193]
[1610032329589,34.00959,1214.7,1214.5,4.00959]
[1610032329989,34.00959,1214.7,1214.5,7.19859]
[1610032332193,4.00959,1214.7,1214.5,7.19859]
[1610032332395,30.0,1215.3,1214.5,7.19859]
[1610032333496,4.00959,1214.6,1214.5,7.19859]
[1610032333694,34.00959,1214.6,1214.5,7.19859]
[1610032335994,34.00959,1214.6,1214.5,3.189]
[1610032336195,34.00959,1214.6,1213.4,67.4724]
[1610032337697,71.5318,1215.0,1212.4,6.1718]
[1610032337698,30.0,1214.5,1213.9,4.00959]
[1610032337899,30.0,1214.5,1213.9,67.28479]
[1610032338711,30.0,1214.4,1213.9,67.28479]
[1610032339603,4.00959,1214.0,1213.9,67.28479]
[1610032339803,4.00959,1214.0,1213.9,6.07399]
[1610032340607,30.0,1214.4,1213.9,6.07399]
[1610032341608,4.00959,1214.3,1214.2,4.00959]
[1610032341810,4.00959,1214.3,1213.9,2.0644]
[1610032342007,30.0,1214.4,1213.9,2.0644]
[1610032343008,30.0,1214.4,1213.4,52.8367]
[1610032343608,4.00959,1214.0,1213.9,4.00959]
[1610032344411,34.00959,1214.0,1213.9,4.00959]
[1610032347212,4.00959,1214.0,1213.9,4.00959]
[1610032348712,34.00959,1214.0,1213.9,4.00959]
[1610032349315,34.00959,1214.0,1213.9,6.85489]
[1610032349712,4.00959,1214.0,1213.9,6.85489]
[1610032350814,34.00959,1214.0,1213.9,2.8453]
[1610032352321,34.00959,1214.0,1213.1,4.00959]
[1610032353320,4.00959,1214.0,1213.1,4.00959]
[1610032353720,4.00959,1213.2,1213.1,4.00959]
[1610032356125,4.00959,1213.2,1212.3,67.6247]
[1610032357725,4.00959,1213.2,1213.1,4.00959]
[1610032359124,4.00959,1213.2,1212.3,67.6247]
[1610032359727,4.00959,1212.9,1212.7,4.00959]
[1610032360026,96.9776,1214.2,1212.7,4.00959]
[1610032361826,4.00959,1213.1,1213.0,4.00959]
[1610032362126,96.9776,1214.2,1213.0,4.00959]
[1610032362325,43.705,1214.2,1213.0,4.00959]
[1610032363728,4.00959,1213.2,1213.0,4.00959]
[1610032365928,4.00959,1213.2,1212.1,49.2888]
[1610032367730,46.1535,1214.2,1212.7,4.00959]
[1610032368929,46.1535,1214.2,1212.1,49.2888]
[1610032369729,4.00959,1212.5,1212.4,4.00959]
[1610032372134,4.00959,1212.5,1211.6,58.0504]
[1610032373834,30.0,1213.5,1212.2,4.00959]
[1610032375738,4.00959,1212.5,1212.4,4.00959]
[1610032375939,30.0,1213.5,1212.4,4.00959]
[1610032377240,6.912,1213.6,1212.4,4.00959]
[1610032377740,4.00959,1212.9,1212.8,4.00959]
[1610032379546,4.00959,1212.9,1212.0,61.7394]
[1610032379747,4.00959,1212.7,1212.4,4.00959]
[1610032381449,34.00959,1212.7,1211.7,60.1487]
[1610032381649,34.00959,1212.7,1210.7,11.9104]
[1610032381850,4.00959,1212.2,1212.0,4.00959]
[1610032383155,33.475,1212.7,1212.0,4.00959]
[1610032383552,30.0,1212.7,1212.0,4.00959]
[1610032383956,4.00959,1212.2,1212.0,4.00959]
[1610032384358,30.0,1213.4,1212.0,4.00959]
[1610032385959,4.00959,1212.3,1212.0,4.00959]
[1610032387862,4.00959,1212.1,1212.0,4.00959]
[1610032388264,96.0637,1213.4,1212.0,4.00959]
[1610032388462,30.0,1213.4,1212.0,4.00959]
[1610032389862,30.0,1213.4,1212.3,4.00959]
[1610032390063,30.0,1213.4,1211.9,54.5443]
[1610032391567,30.0,1213.4,1210.3,5.9519]
[1610032391768,79.3212,1213.4,1211.1,61.17]
[1610032391965,4.00959,1211.9,1211.8,4.00959]
[1610032392165,4.00959,1211.9,1211.1,61.17]
[1610032392366,4.00959,1211.9,1210.3,5.9519]
[1610032392567,7.48459,1211.9,1210.3,5.9519]
[1610032392968,7.48459,1211.9,1210.2,58.4149]
[1610032393969,4.00959,1211.4,1211.1,4.00959]
[1610032394169,4.00959,1211.4,1210.2,58.4149]
[1610032395871,4.00959,1211.4,1211.1,4.00959]
[1610032396070,4.00959,1211.4,1208.8,5.7801]
[1610032396272,4.00959,1211.4,1210.0,49.413]
[1610032397876,4.00959,1210.8,1210.6,4.00959]
[1610032398774,30.0,1211.7,1210.6,4.00959]
[1610032398974,96.9224,1211.8,1210.6,4.00959]
[1610032399476,30.0,1211.8,1210.6,4.00959]
[1610032399876,4.00959,1211.0,1210.9,4.00959]
[1610032400776,30.0,1211.8,1210.9,4.00959]
[1610032401976,4.00959,1211.0,1210.9,4.00959]
[1610032402576,4.00959,1211.0,1210.4,55.7057]
[1610032402775,4.00959,1211.0,1208.9,117.8558]
[1610032402776,4.00959,1211.0,1208.8,5.7801]
[1610032402976,4.00959,1211.0,1209.7,61.1147]
[1610032403978,4.00959,1210.5,1209.7,61.1147]
[1610032405880,30.0,1211.5,1210.4,4.00959]
[1610032406483,30.0,1211.4,1210.1,53.1037]
[1610032407581,30.0,1211.7,1210.1,53.1037]
[1610032407980,4.00959,1211.2,1211.0,4.00959]
[1610032409184,3.475,1211.8,1211.0,4.00959]
[1610032409384,3.475,1211.8,1211.1,7.9337]
[1610032409783,6.912,1211.9,1211.1,7.9337]
[1610032409984,10.92159,1211.9,1211.7,4.00959]
[1610032412387,6.912,1211.9,1211.7,4.00959]
[1610032413789,6.912,1211.9,1211.7,6.06819]
[1610032420997,6.912,1211.9,1211.7,2.0586]
[1610032421198,6.912,1211.9,1211.5,60.0018]
[1610032422000,6.912,1211.9,1211.8,4.00959]
[1610032424107,6.912,1211.9,1211.8,5.97209]
[1610032426209,6.912,1211.9,1211.8,66.11559]
[1610032427110,6.912,1211.9,1211.8,5.97209]
[1610032429010,33.475,1212.6,1211.8,5.97209]
[1610032429214,30.0,1212.6,1211.8,5.97209]
[1610032429810,30.0,1212.5,1211.8,5.97209]
[1610032430011,4.00959,1212.4,1212.1,4.00959]
[1610032430212,34.00959,1212.4,1212.2,7.4449]
[1610032430412,34.00959,1212.4,1212.1,4.00959]
[1610032431011,34.00959,1212.4,1211.8,1.9625]
[1610032431212,34.00959,1212.4,1211.6,57.9091]
[1610032432012,4.00959,1212.0,1211.8,4.00959]
[1610032433212,30.0,1213.4,1211.8,4.00959]
[1610032433614,30.0,1213.4,1212.2,60.8746]
[1610032434013,4.00959,1212.9,1212.6,4.00959]
[1610032434215,4.00959,1212.9,1212.7,7.2515]
[1610032436615,34.00959,1212.9,1212.7,7.2515]
[1610032437817,4.00959,1212.9,1212.7,7.2515]
[1610032439919,34.00959,1212.9,1212.7,7.2515]
[1610032440120,34.00959,1212.9,1212.8,4.00959]
[1610032441122,4.00959,1212.9,1212.8,4.00959]
[1610032443223,30.0,1213.7,1212.8,4.00959]
[1610032443625,30.0,1213.7,1212.9,52.2856]
[1610032444124,4.00959,1213.3,1213.0,4.00959]
[1610032445826,30.0,1213.7,1213.0,4.00959]
[1610032446026,4.00959,1213.6,1213.4,4.00959]
[1610032449328,10.387,1213.8,1213.4,4.00959]
[1610032450130,3.475,1213.8,1213.7,4.00959]
[1610032450332,30.0,1214.3,1214.1,68.3602]
[1610032450532,30.0,1214.8,1214.1,68.3602]
[1610032452031,4.00959,1214.3,1214.1,72.36979]
[1610032452631,4.00959,1214.3,1214.1,4.00959]
[1610032453031,4.00959,1214.3,1213.9,56.7231]
[1610032454030,4.00959,1214.0,1213.9,60.73269]
[1610032454430,4.00959,1214.0,1212.0,6.1998]
[1610032454632,7.48459,1214.0,1213.3,58.9551]
[1610032454831,4.00959,1214.0,1213.3,58.9551]
[1610032456036,4.00959,1213.6,1213.5,4.00959]
[1610032457542,33.475,1214.8,1213.5,4.00959]
[1610032457942,33.475,1214.8,1213.6,64.8819]
[1610032458141,4.00959,1213.8,1213.6,64.8819]
[1610032458341,4.00959,1213.8,1213.5,4.00959]
[1610032459244,0.01,1214.5,1213.5,4.00959]
[1610032460048,4.00959,1214.1,1213.9,4.00959]
[1610032460646,0.01,1214.5,1213.9,4.00959]
[1610032461247,0.01,1214.5,1213.9,55.34159]
[1610032462048,0.01,1214.5,1213.9,57.39829]
[1610032462248,4.00959,1214.2,1213.9,57.39829]
[1610032462449,0.01,1214.5,1213.9,57.39829]
[1610032464250,0.01,1214.5,1214.4,4.00959]
[1610032466154,0.01,1214.5,1214.3,4.00959]
[1610032468059,4.01959,1214.5,1214.3,4.00959]
[1610032468558,0.01,1214.5,1214.3,4.00959]
[1610032470157,4.01959,1214.5,1214.3,4.00959]
[1610032470560,4.01959,1214.5,1213.9,53.3887]
[1610032472263,4.00959,1214.2,1214.1,4.00959]
[1610032473565,4.00959,1214.2,1213.9,2.0567]
[1610032473766,4.00959,1214.2,1213.5,63.7836]
[1610032474165,0.01,1214.5,1213.9,4.00959]
[1610032476167,4.00959,1214.4,1214.2,4.00959]
[1610032477567,4.00959,1214.4,1214.0,51.6936]
[1610032478269,4.00959,1214.1,1214.0,51.6936]
[1610032479972,4.00959,1214.1,1213.9,4.00959]
[1610032480374,4.00959,1214.1,1213.6,53.6467]
[1610032480572,4.00959,1214.1,1212.3,48.8192]
[1610032480774,7.48459,1214.1,1212.3,48.8192]
[1610032481574,37.48459,1214.1,1212.3,48.8192]
[1610032482275,33.475,1214.1,1213.5,4.00959]
[1610032482475,3.475,1214.1,1213.5,4.00959]
[1610032483076,33.475,1214.1,1213.5,4.00959]
[1610032483279,33.475,1214.1,1212.3,48.8192]
[1610032484178,4.00959,1213.4,1213.3,4.00959]
[1610032487883,3.475,1214.1,1213.3,4.00959]
[1610032488084,3.475,1214.1,1213.4,54.8164]
[1610032488284,7.48459,1214.1,1213.8,4.00959]
[1610032488884,3.475,1214.1,1213.8,12.22439]
[1610032490186,3.475,1214.1,1214.0,4.00959]
[1610032492586,3.475,1214.1,1213.8,8.2148]
[1610032494187,3.475,1214.1,1214.0,4.00959]
[1610032497894,0.01,1214.5,1214.4,50.0595]
[1610032498293,0.01,1214.5,1214.4,54.06909]
[1610032503597,6.912,1215.4,1214.4,54.06909]
[1610032503796,6.912,1215.4,1214.4,4.00959]
[1610032504397,6.912,1215.4,1215.3,4.00959]
[1610032504597,3.475,1215.8,1215.3,4.00959]
[1610032504997,3.475,1215.8,1215.7,50.512]
[1610032506400,3.475,1215.8,1215.7,54.52159]
[1610032507200,6.912,1216.5,1215.7,54.52159]
[1610032507400,50.617,1217.6,1215.7,54.52159]
[1610032507600,40.387,1217.6,1215.7,54.52159]
[1610032508407,40.387,1217.6,1216.7,7.1215]
[1610032508601,30.0,1217.6,1216.7,7.1215]
[1610032508800,30.0,1217.5,1216.7,7.1215]
[1610032510004,30.0,1217.4,1216.7,7.1215]
[1610032510404,4.00959,1216.8,1216.7,7.1215]
[1610032511203,34.00959,1216.8,1216.7,7.1215]
[1610032512304,4.00959,1216.8,1216.7,7.1215]
[1610032514104,30.0,1217.6,1216.6,4.00959]
[1610032514306,2.9073,1217.7,1217.1,4.00959]
[1610032514504,32.9073,1217.7,1217.1,4.00959]
[1610032514904,30.0,1217.7,1217.1,4.00959]
[1610032515306,68.3711,1219.1,1217.1,4.00959]
[1610032515505,30.0,1219.0,1217.1,4.00959]
[1610032515705,64.916,1219.0,1217.5,48.4036]
[1610032515904,68.1034,1219.0,1217.5,48.4036]
[1610032516305,4.00959,1217.9,1217.7,4.00959]
[1610032517207,2.9738,1218.2,1217.7,4.00959]
[1610032517906,30.0,1218.5,1217.7,4.00959]
[1610032518308,4.00959,1217.9,1217.7,4.00959]
[1610032518708,4.00959,1217.9,1214.8,5.9237]
[1610032518910,24.62659,1217.9,1215.9,64.3742]
[1610032519513,24.62659,1217.9,1215.9,66.4139]
[1610032520311,24.62659,1217.9,1217.8,4.00959]
[1610032520711,21.15159,1217.9,1217.8,4.00959]
[1610032520912,21.15159,1217.9,1217.7,63.5589]
[1610032521113,24.62659,1217.9,1217.7,63.5589]
[1610032521313,21.15159,1217.9,1217.7,63.5589]
[1610032522816,21.15159,1217.9,1217.4,4.00959]
[1610032523214,21.15159,1217.9,1217.0,51.301]
[1610032524415,4.00959,1217.7,1217.5,4.00959]
[1610032524615,17.142,1217.9,1217.5,4.00959]
[1610032524818,17.142,1217.9,1217.6,65.6833]
[1610032526419,4.00959,1217.7,1217.6,65.6833]
[1610032526618,4.00959,1217.7,1217.2,4.00959]
[1610032526818,4.00959,1217.7,1217.2,63.59769]
[1610032527919,4.00959,1217.7,1215.9,2.0397]
[1610032528120,30.0,1217.6,1215.8,54.336]
[1610032528520,4.00959,1216.9,1216.6,4.00959]
[1610032528719,4.00959,1216.9,1215.8,54.336]
[1610032530420,4.00959,1216.6,1216.5,4.00959]
[1610032530922,30.0,1217.6,1216.5,4.00959]
[1610032532122,30.0,1217.6,1216.5,53.25329]
[1610032532322,33.475,1217.7,1216.5,53.25329]
[1610032532524,30.0,1217.6,1217.0,4.00959]
[1610032532930,30.0,1217.6,1216.4,68.3438]
[1610032534530,4.00959,1217.0,1216.8,4.00959]
[1610032536229,34.00959,1217.0,1216.4,68.3438]
[1610032536429,4.00959,1216.5,1216.4,72.35339]
[1610032536629,4.00959,1216.5,1216.4,4.00959]
[1610032540036,32.7545,1217.1,1216.4,4.00959]
[1610032540236,30.0,1217.1,1216.4,4.00959]
[1610032540436,4.00959,1217.0,1216.1,60.5806]
[1610032540637,4.00959,1217.0,1214.5,5.8391]
[1610032540836,4.00959,1217.0,1215.9,56.8505]
[1610032541036,3.475,1217.7,1214.5,5.8391]
[1610032541236,3.475,1217.7,1216.5,46.0753]
[1610032542436,4.00959,1217.2,1217.0,4.00959]
[1610032542837,3.475,1217.7,1217.0,4.00959]
[1610032543737,3.475,1217.7,1216.5,46.0753]
[1610032544441,4.00959,1217.1,1216.8,4.00959]
[1610032544840,3.475,1217.7,1216.8,11.80519]
[1610032546442,3.475,1217.7,1217.5,4.00959]
[1610032548143,3.475,1217.7,1216.8,7.7956]
[1610032548443,4.00959,1217.5,1217.4,4.00959]
[1610032548846,4.00959,1217.5,1216.8,7.7956]
[1610032550444,4.00959,1217.3,1216.8,11.80519]
[1610032550644,4.00959,1217.3,1216.8,7.7956]
[1610032552546,3.475,1217.7,1216.9,4.00959]
[1610032553248,3.475,1217.7,1216.8,7.7956]
[1610032554453,4.00959,1217.5,1217.2,4.00959]
[1610032557559,3.475,1217.7,1217.2,4.00959]
[1610032558260,3.475,1217.7,1217.3,66.0744]
[1610032558560,4.00959,1217.5,1217.3,66.0744]
[1610032568570,4.00959,1217.5,1216.8,4.00959]
[1610032568771,4.00959,1217.5,1217.0,4.00959]
[1610032570677,3.475,1217.7,1217.2,4.00959]
[1610032571378,3.475,1217.7,1217.2,6.09969]
[1610032572681,4.00959,1217.3,1217.2,6.09969]
[1610032572881,4.00959,1217.3,1217.2,2.0901]
[1610032575182,4.00959,1217.3,1216.6,55.8053]
[1610032576682,4.00959,1216.7,1216.6,55.8053]
[1610032577884,4.00959,1216.7,1216.1,4.00959]
[1610032578084,34.00959,1216.7,1215.5,55.8363]
[1610032578284,37.48459,1216.7,1215.5,55.8363]
[1610032578684,4.00959,1215.9,1215.5,55.8363]
[1610032580787,4.00959,1215.9,1215.6,4.00959]
[1610032580990,4.00959,1215.9,1215.5,55.8363]
[1610032582689,4.00959,1215.9,1215.8,4.00959]
[1610032583388,4.00959,1215.9,1215.5,55.8363]
[1610032584693,4.00959,1215.9,1215.7,4.00959]
[1610032585092,4.00959,1215.9,1215.1,63.7418]
[1610032586693,4.00959,1215.5,1215.4,4.00959]
[1610032587093,30.0,1216.3,1215.4,4.00959]
[1610032588693,4.00959,1215.6,1215.4,4.00959]
[1610032590595,30.0,1216.3,1215.4,4.00959]
[1610032590795,4.00959,1215.8,1215.4,50.73019]
[1610032591497,30.0,1216.6,1215.4,50.73019]
[1610032591696,30.0,1216.6,1215.4,4.00959]
[1610032591897,10.387,1216.7,1215.4,65.83289]
[1610032592196,40.387,1216.7,1215.4,65.83289]
[1610032592797,4.00959,1216.5,1216.2,4.00959]
[1610032592998,40.387,1216.7,1214.0,11.83]
[1610032593196,10.387,1216.7,1215.7,53.8657]
[1610032593796,10.387,1216.7,1214.6,6.0459]
[1610032593998,10.387,1216.7,1216.0,49.8389]
[1610032594698,14.39659,1216.7,1216.4,4.00959]
[1610032594999,14.39659,1216.7,1216.0,49.8389]
[1610032595797,10.387,1216.7,1216.0,49.8389]
[1610032596796,6.912,1216.7,1216.6,6.05749]
[1610032597197,6.912,1216.7,1216.6,61.69389]
[1610032598297,4.00959,1217.2,1216.6,61.69389]
[1610032598499,34.00959,1217.2,1216.6,61.69389]
[1610032598697,4.00959,1216.8,1216.6,57.6843]
[1610032598997,34.00959,1216.8,1216.6,57.6843]
[1610032600198,34.00959,1216.8,1216.6,2.0479]
[1610032600400,34.00959,1216.8,1215.9,48.4648]
[1610032600803,4.00959,1216.0,1215.9,48.4648]
[1610032601002,4.00959,1216.0,1215.5,60.30849]
[1610032602704,4.00959,1216.0,1215.8,4.00959]
[1610032604009,4.00959,1216.0,1215.5,56.2989]
[1610032604706,4.00959,1215.6,1215.5,56.2989]
[1610032605107,4.00959,1215.6,1215.4,4.00959]
[1610032605709,4.00959,1215.6,1214.9,58.8831]
[1610032606811,30.0,1216.3,1214.9,58.8831]
[1610032608816,30.0,1216.3,1215.0,4.00959]
[1610032609316,30.0,1216.2,1215.0,4.00959]
[1610032609516,30.0,1216.2,1215.2,57.742]
[1610032610618,30.0,1216.6,1215.2,57.742]
[1610032610818,4.00959,1215.3,1215.2,57.742]
[1610032611019,4.00959,1215.3,1215.0,4.00959]
[1610032612923,4.00959,1215.1,1215.0,4.00959]
[1610032613123,4.00959,1215.1,1214.8,64.1476]
[1610032613724,34.00959,1215.1,1214.8,64.1476]
[1610032614829,4.00959,1215.1,1214.8,64.1476]
[1610032615028,4.00959,1214.9,1214.8,64.1476]
[1610032619131,4.00959,1214.9,1214.3,4.00959]
[1610032620033,4.00959,1214.9,1214.1,63.373]
[1610032620934,4.00959,1214.3,1214.2,4.00959]
[1610032621734,4.00959,1214.3,1212.8,5.7168]
[1610032621936,4.00959,1214.3,1213.7,63.3958]
[1610032622934,4.00959,1214.1,1214.0,4.00959]
[1610032623134,4.00959,1214.1,1212.8,5.7168]
[1610032623534,4.00959,1214.1,1212.7,54.8816]
[1610032625037,4.00959,1213.4,1212.9,4.00959]
[1610032626937,4.00959,1213.4,1213.3,4.00959]
[1610032627337,4.00959,1213.4,1213.3,6.09809]
[1610032629638,4.00959,1213.4,1213.3,2.0885]
[1610032632342,4.00959,1213.4,1212.9,4.00959]
[1610032633143,4.00959,1213.2,1213.1,4.00959]
[1610032633543,4.00959,1213.2,1212.7,54.8816]
[1610032634445,4.00959,1213.2,1211.5,5.9468]
[1610032634647,4.00959,1213.2,1211.7,65.1048]
[1610032635047,4.00959,1213.2,1212.9,4.00959]
[1610032637151,4.00959,1213.0,1212.9,4.00959]
[1610032637750,104.9121,1214.2,1212.9,4.00959]
[1610032638149,74.9121,1214.2,1212.9,4.00959]
[1610032639050,4.00959,1213.1,1212.9,4.00959]
[1610032642251,74.9121,1214.2,1212.9,4.00959]
[1610032642452,6.4276,1214.2,1212.9,4.00959]
[1610032642655,3.475,1214.2,1213.0,60.7536]
[1610032643253,3.475,1214.2,1213.3,4.00959]
[1610032644054,3.475,1214.2,1213.3,10.90109]
[1610032645158,4.00959,1213.5,1213.3,10.90109]
[1610032646155,3.475,1214.2,1213.3,10.90109]
[1610032646756,3.475,1214.2,1213.3,6.8915]
[1610032646956,3.475,1214.2,1213.3,8.8833]
[1610032647156,4.00959,1213.4,1213.3,8.8833]
[1610032648560,4.00959,1213.4,1213.3,1.9918]
[1610032652061,4.00959,1213.4,1212.8,60.23819]
[1610032653165,4.00959,1213.1,1213.0,4.00959]
[1610032654467,32.5426,1214.1,1213.0,4.00959]
[1610032654867,30.0,1214.1,1213.2,62.8205]
[1610032655268,4.00959,1213.6,1213.4,4.00959]
[1610032655672,3.475,1214.2,1213.4,4.00959]
[1610032657275,4.00959,1213.5,1213.4,4.00959]
[1610032658576,4.00959,1213.5,1213.2,62.8205]
[1610032658776,4.00959,1213.5,1211.0,6.1682]
[1610032658976,14.39659,1213.5,1211.7,65.5593]
[1610032659276,4.00959,1213.3,1213.2,4.00959]
[1610032659677,4.00959,1213.3,1212.9,49.7369]
[1610032661279,6.912,1213.5,1213.1,4.00959]
[1610032663283,6.912,1213.5,1213.3,4.00959]
[1610032663884,6.912,1213.5,1213.3,71.02059]
[1610032667388,10.92159,1213.5,1213.3,4.00959]
[1610032667588,6.912,1213.5,1213.3,4.00959]
[1610032669294,10.92159,1213.5,1213.3,4.00959]
[1610032669892,10.92159,1213.5,1212.8,67.6533]
[1610032671295,6.912,1213.5,1213.1,4.00959]
[1610032673398,4.00959,1213.2,1213.1,4.00959]
[1610032678302,30.0,1213.4,1213.1,4.00959]
[1610032678602,30.0,1213.4,1213.1,5.99639]
[1610032679302,4.00959,1213.2,1213.1,5.99639]
[1610032680605,6.912,1213.5,1213.1,5.99639]
[1610032681305,4.00959,1213.4,1213.3,4.00959]
[1610032682004,34.00959,1213.4,1213.3,4.00959]
[1610032683708,6.912,1213.5,1213.3,4.00959]
[1610032683909,6.912,1213.5,1213.3,66.13009]
[1610032686111,6.912,1213.5,1213.3,4.00959]
[1610032686311,36.912,1213.5,1213.1,1.9868]
[1610032686512,36.912,1213.5,1212.7,54.5046]
[1610032687312,4.00959,1213.1,1213.0,4.00959]
[1610032687914,4.00959,1213.1,1212.7,54.5046]
[1610032689315,4.00959,1213.1,1212.9,4.00959]
[1610032690618,34.00959,1213.1,1212.9,4.00959]
[1610032691219,34.00959,1213.1,1211.5,66.2828]
[1610032691419,33.475,1213.1,1212.7,4.00959]
[1610032691818,33.475,1213.1,1212.0,56.9174]
[1610032693419,33.475,1213.1,1212.2,4.00959]
[1610032695423,4.00959,1212.5,1212.2,4.00959]
[1610032696224,33.475,1213.1,1212.2,4.00959]
[1610032696626,33.475,1213.1,1212.2,59.37309]
[1610032697425,34.00959,1212.7,1212.4,4.00959]
[1610032698528,4.00959,1212.7,1212.4,4.00959]
[1610032701131,34.00959,1212.7,1212.4,4.00959]
[1610032701431,4.00959,1212.5,1212.4,4.00959]
[1610032705135,4.00959,1212.5,1212.4,11.14309]
[1610032705338,3.475,1213.1,1212.4,11.14309]
[1610032705535,3.475,1213.1,1212.7,4.00959]
[1610032705735,3.475,1213.1,1213.0,52.3816]
[1610032707437,3.475,1213.1,1213.0,4.00959]
[1610032707637,3.475,1213.1,1212.4,57.785]
[1610032708037,33.475,1213.1,1212.4,57.785]
[1610032709439,4.00959,1212.8,1212.5,4.00959]
[1610032709840,34.00959,1212.8,1211.2,5.7057]
[1610032710039,34.00959,1212.8,1211.4,58.0918]
[1610032711440,4.00959,1212.4,1212.3,4.00959]
[1610032714651,30.0,1212.7,1212.3,4.00959]
[1610032715547,30.0,1212.7,1212.2,66.9471]
[1610032716855,30.0,1213.0,1212.2,66.9471]
[1610032717552,4.00959,1212.5,1212.4,4.00959]
[1610032718553,30.0,1213.0,1212.4,4.00959]
[1610032718753,3.475,1213.1,1212.4,4.00959]
[1610032719553,7.48459,1213.1,1212.9,4.00959]
[1610032721755,3.475,1213.1,1212.9,4.00959]
[1610032722756,17.142,1213.7,1213.1,67.5119]
[1610032722957,30.0,1214.2,1213.1,64.0369]
[1610032723555,4.00959,1214.0,1213.8,4.00959]
[1610032723955,34.00959,1214.0,1213.8,4.00959]
[1610032725463,34.00959,1214.0,1213.7,48.6581]
[1610032725661,34.00959,1213.8,1213.7,48.6581]
[1610032729067,34.00959,1213.8,1211.9,6.1133]
[1610032729267,44.39659,1213.8,1211.9,6.1133]
[1610032729467,44.39659,1213.8,1212.1,47.9999]
[1610032729668,4.00959,1212.9,1212.6,4.00959]
[1610032730167,4.00959,1212.9,1212.6,10.59999]
[1610032730970,50.617,1213.8,1212.6,10.59999]
[1610032731570,4.00959,1213.1,1212.9,4.00959]
[1610032734072,50.617,1213.8,1212.9,4.00959]
[1610032734471,47.142,1213.8,1212.9,4.00959]
[1610032735572,4.00959,1213.1,1212.9,4.00959]
[1610032735771,4.00959,1213.1,1213.0,67.3429]
[1610032736573,4.00959,1213.1,1212.9,4.00959]
[1610032737978,4.00959,1213.1,1212.9,12.55449]
[1610032739176,50.617,1213.8,1212.9,12.55449]
[1610032739577,4.00959,1213.4,1213.1,4.00959]
[1610032740678,4.00959,1213.4,1213.1,61.35719]
[1610032742585,4.00959,1213.4,1213.1,4.00959]
[1610032742787,34.00959,1213.4,1213.1,4.00959]
[1610032743679,4.00959,1213.2,1213.1,4.00959]
[1610032743878,34.00959,1213.2,1213.1,4.00959]
[1610032745078,4.00959,1213.2,1213.1,4.00959]
[1610032745279,34.00959,1213.2,1213.1,4.00959]
[1610032746280,34.00959,1213.2,1212.6,60.259]
[1610032747579,4.00959,1212.7,1212.6,4.00959]
[1610032748182,34.00959,1212.7,1212.6,4.00959]
[1610032750885,34.00959,1212.7,1212.1,2.0249]
[1610032751085,34.00959,1212.7,1211.9,65.4927]
[1610032751786,30.0,1212.7,1212.4,4.00959]
[1610032751985,30.0,1213.4,1212.4,4.00959]
[1610032753386,30.0,1213.3,1212.6,58.7559]
[1610032753786,4.00959,1212.7,1212.6,58.7559]
[1610032753987,34.00959,1212.7,1212.6,58.7559]
[1610032754892,34.00959,1212.7,1212.4,4.00959]
[1610032755788,4.00959,1212.5,1212.4,4.00959]
[1610032756189,34.00959,1212.5,1212.4,4.00959]
[1610032758090,30.0,1213.6,1212.4,4.00959]
[1610032758694,30.0,1213.6,1212.6,57.0496]
[1610032759195,30.0,1213.5,1212.6,57.0496]
[1610032759895,4.00959,1212.8,1212.7,4.00959]
[1610032760096,34.00959,1212.8,1212.7,4.00959]
[1610032760294,34.00959,1212.8,1212.3,52.9184]
[1610032761796,30.0,1212.8,1212.4,4.00959]
[1610032761995,30.0,1213.5,1212.4,4.00959]
[1610032762196,30.0,1212.7,1212.4,4.00959]
[1610032763098,30.0,1213.5,1212.4,4.00959]
[1610032763799,4.00959,1212.5,1212.3,52.9184]
[1610032763999,30.0,1212.4,1212.3,52.9184]
[1610032768704,30.0,1212.4,1212.2,4.00959]